[Event "Live Chess"]
[Site "Chess.com"]
[Date "2024.06.01"]
[Round "-"]
[White "Zhevzh1k7"]
[Black "nigelst"]
[Result "1-0"]
[WhiteElo "1086"]
[BlackElo "1662"]
[TimeControl "300"]
[EndTime "11:11:41 PDT"]
[Termination "Zhevzh1k7 won by checkmate"]

1. e4 {[%clk 0:04:57.8]} 1... c6 {[%clk 0:04:59.4]} 2. d4 {[%clk 0:04:56.3]}
2... d5 {[%clk 0:04:58.8]} 3. f3 {[%clk 0:04:56.2]} 3... e6 {[%clk 0:04:56.7]}
4. Nc3 {[%clk 0:04:53.4]} 4... Bb4 {[%clk 0:04:50.8]} 5. Bd2 {[%clk 0:04:50.5]}
5... Bxc3 {[%clk 0:04:43.8]} 6. Bxc3 {[%clk 0:04:49.2]} 6... dxe4 {[%clk
0:04:42.1]} 7. fxe4 {[%clk 0:04:48.1]} 7... Qh4+ {[%clk 0:04:40.1]} 8. Ke2
{[%clk 0:04:44.1]} 8... Qxe4+ {[%clk 0:04:38.8]} 9. Kd2 {[%clk 0:04:42.6]} 9...
Qf4+ {[%clk 0:04:36.2]} 10. Ke2 {[%clk 0:04:38.3]} 10... Nf6 {[%clk 0:04:32.1]}
11. Nf3 {[%clk 0:04:35.5]} 11... Ng4 {[%clk 0:04:27.8]} 12. Qd2 {[%clk
0:04:28.8]} 12... Qxd2+ {[%clk 0:04:25.7]} 13. Nxd2 {[%clk 0:04:27.1]} 13... Nf2
{[%clk 0:04:24.8]} 14. Kxf2 {[%clk 0:04:24.6]} 14... O-O {[%clk 0:04:22.1]} 15.
Nf3 {[%clk 0:04:22.1]} 15... Nd7 {[%clk 0:04:21]} 16. Bd3 {[%clk 0:04:19.4]}
16... b6 {[%clk 0:04:19.7]} 17. Rhe1 {[%clk 0:04:17.2]} 17... Bb7 {[%clk
0:04:18.7]} 18. a4 {[%clk 0:04:14.3]} 18... c5 {[%clk 0:04:16.8]} 19. dxc5
{[%clk 0:04:13.3]} 19... Nxc5 {[%clk 0:04:15.9]} 20. Ra2 {[%clk 0:04:01.1]}
20... Rad8 {[%clk 0:04:14]} 21. Re3 {[%clk 0:03:51.5]} 21... Bd5 {[%clk
0:04:05.3]} 22. b3 {[%clk 0:03:43.5]} 22... a5 {[%clk 0:04:00]} 23. Bd4 {[%clk
0:03:33.2]} 23... Bxf3 {[%clk 0:03:47.1]} 24. Bxc5 {[%clk 0:03:25.6]} 24... bxc5
{[%clk 0:03:43.1]} 25. gxf3 {[%clk 0:03:22.5]} 25... Rd4 {[%clk 0:03:40.2]} 26.
Re4 {[%clk 0:03:17.5]} 26... Rd6 {[%clk 0:03:36.1]} 27. Ke3 {[%clk 0:03:10.7]}
27... Rfd8 {[%clk 0:03:30.9]} 28. Ra1 {[%clk 0:03:08.1]} 28... f6 {[%clk
0:03:29.3]} 29. Rd1 {[%clk 0:03:02.9]} 29... Kf7 {[%clk 0:03:27.7]} 30. f4
{[%clk 0:02:59.9]} 30... h6 {[%clk 0:03:05.3]} 31. Rc4 {[%clk 0:02:58.4]} 31...
Rd5 {[%clk 0:03:01.4]} 32. Re4 {[%clk 0:02:39.9]} 32... Rh5 {[%clk 0:02:55.3]}
33. Rd2 {[%clk 0:02:30.1]} 33... Rdd5 {[%clk 0:02:40.6]} 34. c4 {[%clk
0:02:17.9]} 34... Rh3+ {[%clk 0:02:31]} 35. Ke2 {[%clk 0:02:12.2]} 35... Rxh2+
{[%clk 0:02:29.8]} 36. Ke3 {[%clk 0:02:11.1]} 36... Rh3+ {[%clk 0:02:27.7]} 37.
Ke2 {[%clk 0:02:09.1]} 37... Rdh5 {[%clk 0:02:23.1]} 38. Re3 {[%clk 0:02:01]}
38... Rh2+ {[%clk 0:02:20.9]} 39. Kd1 {[%clk 0:01:57.2]} 39... R5h4 {[%clk
0:02:17.6]} 40. Rxh2 {[%clk 0:01:54.8]} 40... Rxh2 {[%clk 0:02:14.2]} 41. Re2
{[%clk 0:01:51]} 41... Rh1+ {[%clk 0:02:06.5]} 42. Kd2 {[%clk 0:01:49.7]} 42...
Rf1 {[%clk 0:02:05]} 43. Re4 {[%clk 0:01:42.5]} 43... f5 {[%clk 0:02:04]} 44.
Bxf1 {[%clk 0:01:39.5]} 44... fxe4 {[%clk 0:02:02.1]} 45. Ke3 {[%clk 0:01:38.7]}
45... h5 {[%clk 0:01:57.2]} 46. Kxe4 {[%clk 0:01:37.3]} 46... h4 {[%clk
0:01:56.2]} 47. Ke5 {[%clk 0:01:34.2]} 47... g6 {[%clk 0:01:52.8]} 48. Kd6
{[%clk 0:01:32.2]} 48... Kf6 {[%clk 0:01:51.8]} 49. Kxc5 {[%clk 0:01:31]} 49...
Kf5 {[%clk 0:01:51]} 50. Kb5 {[%clk 0:01:30.5]} 50... Kxf4 {[%clk 0:01:50.2]}
51. c5 {[%clk 0:01:30.2]} 51... Kf3 {[%clk 0:01:49]} 52. c6 {[%clk 0:01:29.8]}
52... Kf2 {[%clk 0:01:48.6]} 53. c7 {[%clk 0:01:29.3]} 53... Kxf1 {[%clk
0:01:47.6]} 54. c8=Q {[%clk 0:01:28.6]} 54... h3 {[%clk 0:01:47.2]} 55. Qf8+
{[%clk 0:01:27.5]} 55... Kg1 {[%clk 0:01:45.4]} 56. Qc5+ {[%clk 0:01:23.7]}
56... Kg2 {[%clk 0:01:43.3]} 57. Qc2+ {[%clk 0:01:21.7]} 57... Kg1 {[%clk
0:01:41.9]} 58. Qxg6+ {[%clk 0:01:20.3]} 58... Kf2 {[%clk 0:01:38.6]} 59. Qc2+
{[%clk 0:01:15.5]} 59... Kg1 {[%clk 0:01:36.8]} 60. Qd1+ {[%clk 0:01:09.2]}
60... Kg2 {[%clk 0:01:35.2]} 61. Kxa5 {[%clk 0:01:05.3]} 61... h2 {[%clk
0:01:33.5]} 62. Qd2+ {[%clk 0:01:02.7]} 62... Kg1 {[%clk 0:01:32]} 63. Qe3+
{[%clk 0:00:56.9]} 63... Kg2 {[%clk 0:01:30]} 64. Qg5+ {[%clk 0:00:52.8]} 64...
Kf1 {[%clk 0:01:25]} 65. Qf4+ {[%clk 0:00:50.9]} 65... Kg1 {[%clk 0:01:23.4]}
66. Qc1+ {[%clk 0:00:46]} 66... Kg2 {[%clk 0:01:21.8]} 67. b4 {[%clk 0:00:42.4]}
67... h1=Q {[%clk 0:01:19]} 68. Qxh1+ {[%clk 0:00:41.4]} 68... Kxh1 {[%clk
0:01:18]} 69. b5 {[%clk 0:00:41.3]} 69... e5 {[%clk 0:01:17.3]} 70. b6 {[%clk
0:00:41.2]} 70... e4 {[%clk 0:01:17.2]} 71. b7 {[%clk 0:00:40.8]} 71... e3
{[%clk 0:01:17.1]} 72. b8=Q {[%clk 0:00:40.1]} 72... e2 {[%clk 0:01:17]} 73.
Qh8+ {[%clk 0:00:39.3]} 73... Kg1 {[%clk 0:01:14.9]} 74. Qe5 {[%clk 0:00:37]}
74... Kf1 {[%clk 0:01:13.7]} 75. Kb6 {[%clk 0:00:36]} 75... e1=Q {[%clk
0:01:07.1]} 76. Qxe1+ {[%clk 0:00:34.7]} 76... Kxe1 {[%clk 0:01:06.2]} 77. a5
{[%clk 0:00:34.6]} 77... Ke2 {[%clk 0:01:05.5]} 78. a6 {[%clk 0:00:34.5]} 78...
Ke3 {[%clk 0:01:05.1]} 79. a7 {[%clk 0:00:34.4]} 79... Ke4 {[%clk 0:01:04.9]}
80. a8=Q+ {[%clk 0:00:33.2]} 80... Kd4 {[%clk 0:01:04.8]} 81. Qe8 {[%clk
0:00:31.5]} 81... Kc4 {[%clk 0:01:04.7]} 82. Kc6 {[%clk 0:00:30.6]} 82... Kd4
{[%clk 0:01:04.6]} 83. Qe6 {[%clk 0:00:29.6]} 83... Kd3 {[%clk 0:01:03.4]} 84.
Kd5 {[%clk 0:00:29]} 84... Kc3 {[%clk 0:01:02.2]} 85. Qg4 {[%clk 0:00:28.5]}
85... Kb3 {[%clk 0:01:01.1]} 86. Qc4+ {[%clk 0:00:25.7]} 86... Kb2 {[%clk
0:01:00]} 87. Qd3 {[%clk 0:00:23.6]} 87... Kc1 {[%clk 0:00:58.2]} 88. Qe2 {[%clk
0:00:22.1]} 88... Kb1 {[%clk 0:00:56.7]} 89. Kc4 {[%clk 0:00:21.5]} 89... Ka1
{[%clk 0:00:55.3]} 90. Kb3 {[%clk 0:00:20.9]} 90... Kb1 {[%clk 0:00:54.4]} 91.
Qb2# {[%clk 0:00:20.6]} 1-0

[Event "Live Chess"]
[Site "Chess.com"]
[Date "2024.06.01"]
[Round "-"]
[White "SirGerhard"]
[Black "elephantgerrald"]
[Result "1-0"]
[WhiteElo "2772"]
[BlackElo "757"]
[TimeControl "300"]
[EndTime "11:11:41 PDT"]
[Termination "SirGerhard won by checkmate"]

1. d4 {[%clk 0:04:58.7]} 1... d5 {[%clk 0:04:56.6]} 2. c4 {[%clk 0:04:57.6]}
2... dxc4 {[%clk 0:04:51.6]} 3. Nf3 {[%clk 0:04:57]} 3... Nf6 {[%clk 0:04:46.8]}
4. Nc3 {[%clk 0:04:56.1]} 4... Nc6 {[%clk 0:04:41.5]} 5. e4 {[%clk 0:04:53.3]}
5... e6 {[%clk 0:04:38.5]} 6. Bxc4 {[%clk 0:04:51.4]} 6... Bb4 {[%clk
0:04:32.2]} 7. Qd3 {[%clk 0:04:49.7]} 7... Bxc3+ {[%clk 0:04:30.2]} 8. bxc3
{[%clk 0:04:48.2]} 8... O-O {[%clk 0:04:27.5]} 9. O-O {[%clk 0:04:47.4]} 9... e5
{[%clk 0:04:22.6]} 10. Ba3 {[%clk 0:04:45.6]} 10... Re8 {[%clk 0:04:20.5]} 11.
Ng5 {[%clk 0:04:45]} 11... Kh8 {[%clk 0:03:52]} 12. Nxf7+ {[%clk 0:04:43.3]}
12... Kg8 {[%clk 0:03:40]} 13. Nxd8+ {[%clk 0:04:42.3]} 13... Kh8 {[%clk
0:03:33.6]} 14. Nxc6 {[%clk 0:04:40.1]} 14... bxc6 {[%clk 0:03:18.3]} 15. dxe5
{[%clk 0:04:39.4]} 15... Bb7 {[%clk 0:03:13.1]} 16. exf6 {[%clk 0:04:37.7]}
16... Red8 {[%clk 0:03:08.3]} 17. fxg7+ {[%clk 0:04:35.8]} 17... Kxg7 {[%clk
0:03:06.2]} 18. Qg3+ {[%clk 0:04:35]} 18... Kh8 {[%clk 0:03:01]} 19. Qe5# {[%clk
0:04:34]} 1-0

[Event "Live Chess"]
[Site "Chess.com"]
[Date "2024.06.01"]
[Round "-"]
[White "IanCalvert2"]
[Black "Isambard_Thomas"]
[Result "0-1"]
[WhiteElo "1446"]
[BlackElo "2165"]
[TimeControl "300"]
[EndTime "11:11:52 PDT"]
[Termination "Isambard_Thomas won on time"]

1. b3 {[%clk 0:04:53.7]} 1... d5 {[%clk 0:04:58.6]} 2. Bb2 {[%clk 0:04:50.1]}
2... Nf6 {[%clk 0:04:58.2]} 3. Nf3 {[%clk 0:04:48]} 3... c6 {[%clk 0:04:57.6]}
4. g3 {[%clk 0:04:45.3]} 4... Bg4 {[%clk 0:04:57.1]} 5. Bg2 {[%clk 0:04:44.4]}
5... e6 {[%clk 0:04:56.5]} 6. O-O {[%clk 0:04:42.1]} 6... Nbd7 {[%clk
0:04:55.6]} 7. c4 {[%clk 0:04:36.4]} 7... Bd6 {[%clk 0:04:54.6]} 8. d3 {[%clk
0:04:33.5]} 8... Qe7 {[%clk 0:04:53]} 9. Nbd2 {[%clk 0:04:31.7]} 9... O-O-O
{[%clk 0:04:50.2]} 10. cxd5 {[%clk 0:04:17.8]} 10... exd5 {[%clk 0:04:08.3]} 11.
Rc1 {[%clk 0:04:13.1]} 11... h5 {[%clk 0:04:04.1]} 12. h4 {[%clk 0:04:06]} 12...
Kb8 {[%clk 0:03:58]} 13. Qc2 {[%clk 0:03:55.7]} 13... Rhe8 {[%clk 0:03:45.5]}
14. e3 {[%clk 0:03:49.4]} 14... Rc8 {[%clk 0:03:32.8]} 15. Rfe1 {[%clk
0:03:04.8]} 15... Bb4 {[%clk 0:03:26.4]} 16. Bc3 {[%clk 0:03:00.4]} 16... Ba3
{[%clk 0:03:15.6]} 17. Bb2 {[%clk 0:02:58.8]} 17... Bd6 {[%clk 0:03:07.2]} 18.
Nd4 {[%clk 0:02:25.2]} 18... Bc5 {[%clk 0:03:00.4]} 19. e4 {[%clk 0:02:06.3]}
19... Bb6 {[%clk 0:02:55.3]} 20. e5 {[%clk 0:01:28.3]} 20... Nxe5 {[%clk
0:02:43.6]} 21. Rxe5 {[%clk 0:01:14.8]} 21... Qxe5 {[%clk 0:02:29.3]} 22. Nxc6+
{[%clk 0:01:12.9]} 22... Rxc6 {[%clk 0:02:28.7]} 23. Bxe5+ {[%clk 0:01:10.2]}
23... Rxe5 {[%clk 0:02:25.3]} 24. Qb2 {[%clk 0:00:54.5]} 24... Rxc1+ {[%clk
0:02:18.9]} 25. Qxc1 {[%clk 0:00:51]} 25... Re2 {[%clk 0:02:18.5]} 26. Nf3
{[%clk 0:00:37.3]} 26... Bxf2+ {[%clk 0:02:12.5]} 27. Kh1 {[%clk 0:00:27.8]}
27... Bxg3 {[%clk 0:02:07.7]} 28. Qc5 {[%clk 0:00:15.7]} 28... Bxf3 {[%clk
0:01:58.7]} 29. Bxf3 {[%clk 0:00:13.5]} 29... Rh2+ {[%clk 0:01:55.6]} 30. Kg1
{[%clk 0:00:12]} 30... Bf2+ {[%clk 0:01:47.6]} 31. Qxf2 {[%clk 0:00:09.3]} 31...
Rxf2 {[%clk 0:01:46.3]} 32. Kxf2 {[%clk 0:00:08.5]} 32... Kc7 {[%clk 0:01:44.3]}
33. Ke3 {[%clk 0:00:05.8]} 33... Kd6 {[%clk 0:01:43.8]} 34. Kd4 {[%clk
0:00:04.8]} 34... a6 {[%clk 0:01:42.1]} 35. b4 {[%clk 0:00:02.9]} 35... b5
{[%clk 0:01:40.7]} 0-1

[Event "Live Chess"]
[Site "Chess.com"]
[Date "2024.06.01"]
[Round "-"]
[White "Bob2pen"]
[Black "Ninifu"]
[Result "1-0"]
[WhiteElo "1850"]
[BlackElo "2015"]
[TimeControl "300"]
[EndTime "11:11:57 PDT"]
[Termination "Bob2pen won on time"]

1. c4 {[%clk 0:04:55.8]} 1... Nf6 {[%clk 0:04:58.1]} 2. g3 {[%clk 0:04:54.9]}
2... g6 {[%clk 0:04:57.3]} 3. Bg2 {[%clk 0:04:53.1]} 3... Bg7 {[%clk 0:04:56.7]}
4. Nc3 {[%clk 0:04:51.6]} 4... O-O {[%clk 0:04:55.9]} 5. Nf3 {[%clk 0:04:50.7]}
5... d6 {[%clk 0:04:55.2]} 6. O-O {[%clk 0:04:49.5]} 6... e5 {[%clk 0:04:54]} 7.
d3 {[%clk 0:04:48.2]} 7... h6 {[%clk 0:04:52.6]} 8. Rb1 {[%clk 0:04:46.9]} 8...
a5 {[%clk 0:04:50.2]} 9. a3 {[%clk 0:04:45.7]} 9... Re8 {[%clk 0:04:49.2]} 10.
b4 {[%clk 0:04:44.4]} 10... axb4 {[%clk 0:04:48.5]} 11. axb4 {[%clk 0:04:43.3]}
11... e4 {[%clk 0:04:47.8]} 12. Nxe4 {[%clk 0:04:40.8]} 12... Nxe4 {[%clk
0:04:47.1]} 13. dxe4 {[%clk 0:04:39.9]} 13... Rxe4 {[%clk 0:04:46.5]} 14. c5
{[%clk 0:04:39.1]} 14... Nc6 {[%clk 0:04:27.4]} 15. cxd6 {[%clk 0:04:35.4]}
15... cxd6 {[%clk 0:04:25.6]} 16. b5 {[%clk 0:04:34.1]} 16... Nd4 {[%clk
0:04:20.7]} 17. Nxd4 {[%clk 0:04:32.3]} 17... Rxd4 {[%clk 0:04:19.7]} 18. Qb3
{[%clk 0:04:23.2]} 18... Bf5 {[%clk 0:03:54.3]} 19. Be3 {[%clk 0:04:14.6]} 19...
Rda4 {[%clk 0:03:44.1]} 20. Bxb7 {[%clk 0:03:57]} 20... Be6 {[%clk 0:03:07.2]}
21. Bd5 {[%clk 0:03:46.2]} 21... Ra3 {[%clk 0:02:55.8]} 22. Bxe6 {[%clk
0:03:31.8]} 22... Rxb3 {[%clk 0:02:53]} 23. Bxb3 {[%clk 0:03:30.4]} 23... d5
{[%clk 0:02:41.6]} 24. Rfd1 {[%clk 0:03:28.3]} 24... d4 {[%clk 0:02:36]} 25. Bf4
{[%clk 0:03:26.3]} 25... Qb6 {[%clk 0:02:33]} 26. Bc4 {[%clk 0:03:20.1]} 26...
g5 {[%clk 0:02:21.9]} 27. Bd2 {[%clk 0:03:14.2]} 27... Rc8 {[%clk 0:01:55.7]}
28. Bd3 {[%clk 0:03:11.4]} 28... Re8 {[%clk 0:01:43.2]} 29. Rdc1 {[%clk
0:03:07.4]} 29... Re5 {[%clk 0:01:33.6]} 30. Rc6 {[%clk 0:03:04.7]} 30... Qb7
{[%clk 0:01:24.4]} 31. Rbc1 {[%clk 0:02:47.2]} 31... Rxb5 {[%clk 0:01:22.4]} 32.
Bxb5 {[%clk 0:02:45.3]} 32... Qxb5 {[%clk 0:01:21.2]} 33. Be1 {[%clk 0:02:35.1]}
33... Qxe2 {[%clk 0:01:18.9]} 34. Bb4 {[%clk 0:02:27.4]} 34... d3 {[%clk
0:01:16.4]} 35. Re1 {[%clk 0:02:21]} 35... Qf3 {[%clk 0:01:08.3]} 36. Rd6 {[%clk
0:02:13.4]} 36... h5 {[%clk 0:01:01.5]} 37. Re3 {[%clk 0:02:06.3]} 37... Qd1+
{[%clk 0:00:56.8]} 38. Kg2 {[%clk 0:02:05.4]} 38... Qb3 {[%clk 0:00:52.2]} 39.
Bd2 {[%clk 0:02:00.4]} 39... h4 {[%clk 0:00:44.4]} 40. Rexd3 {[%clk 0:01:58.6]}
40... Qb7+ {[%clk 0:00:41.1]} 41. Kh3 {[%clk 0:01:54.6]} 41... Qc8+ {[%clk
0:00:35.7]} 42. Kg2 {[%clk 0:01:52.6]} 42... h3+ {[%clk 0:00:33.5]} 43. Kf3
{[%clk 0:01:51.4]} 43... Qf5+ {[%clk 0:00:30.4]} 44. Ke2 {[%clk 0:01:49.9]}
44... Qe4+ {[%clk 0:00:26.4]} 45. Kd1 {[%clk 0:01:46]} 45... Qh1+ {[%clk
0:00:24.3]} 46. Ke2 {[%clk 0:01:43.6]} 46... Qxh2 {[%clk 0:00:23.4]} 47. Rd8+
{[%clk 0:01:39.7]} 47... Kh7 {[%clk 0:00:21.8]} 48. R8d7 {[%clk 0:01:38.8]}
48... Kg6 {[%clk 0:00:15.7]} 49. R3d5 {[%clk 0:01:36.1]} 49... f6 {[%clk
0:00:12.7]} 50. R7d6 {[%clk 0:01:29.9]} 50... Qg2 {[%clk 0:00:10.2]} 51. Bxg5
{[%clk 0:01:28.4]} 51... Qe4+ {[%clk 0:00:07.9]} 52. Be3 {[%clk 0:01:27.5]}
52... h2 {[%clk 0:00:06.1]} 53. Rg5+ {[%clk 0:01:24.7]} 53... Kh7 {[%clk
0:00:02.7]} 54. Rh5+ {[%clk 0:01:23.6]} 54... Kg8 {[%clk 0:00:02.1]} 55. Rxh2
{[%clk 0:01:22.5]} 1-0

[Event "Live Chess"]
[Site "Chess.com"]
[Date "2024.06.01"]
[Round "-"]
[White "jimwad"]
[Black "WelshTiger"]
[Result "0-1"]
[WhiteElo "1252"]
[BlackElo "2536"]
[TimeControl "300"]
[EndTime "11:12:09 PDT"]
[Termination "WelshTiger won by resignation"]

1. d4 {[%clk 0:04:59.5]} 1... d5 {[%clk 0:04:53.9]} 2. c4 {[%clk 0:04:58.4]}
2... dxc4 {[%clk 0:04:52.7]} 3. e3 {[%clk 0:04:57.1]} 3... e6 {[%clk 0:04:49]}
4. Bxc4 {[%clk 0:04:55.5]} 4... a6 {[%clk 0:04:48.6]} 5. Nc3 {[%clk 0:04:54.6]}
5... b5 {[%clk 0:04:46.8]} 6. Bd3 {[%clk 0:04:53.3]} 6... Bb7 {[%clk 0:04:46.2]}
7. Nf3 {[%clk 0:04:50.9]} 7... Nf6 {[%clk 0:04:44.8]} 8. O-O {[%clk 0:04:49.5]}
8... Nbd7 {[%clk 0:04:43.7]} 9. Qe2 {[%clk 0:04:39]} 9... c5 {[%clk 0:04:42.1]}
10. dxc5 {[%clk 0:04:37.7]} 10... Nxc5 {[%clk 0:04:41.1]} 11. Bc2 {[%clk
0:04:28.4]} 11... Be7 {[%clk 0:04:39.1]} 12. Rd1 {[%clk 0:04:26.4]} 12... Qc7
{[%clk 0:04:38.2]} 13. e4 {[%clk 0:04:17.8]} 13... O-O {[%clk 0:04:21.8]} 14.
Bg5 {[%clk 0:04:12.6]} 14... h6 {[%clk 0:04:17]} 15. Bxf6 {[%clk 0:04:11.2]}
15... Bxf6 {[%clk 0:04:16]} 16. e5 {[%clk 0:04:06.1]} 16... Be7 {[%clk
0:04:14.8]} 17. Rac1 {[%clk 0:04:04.4]} 17... Qb6 {[%clk 0:04:12.4]} 18. Be4
{[%clk 0:03:55.1]} 18... Rfd8 {[%clk 0:03:58.1]} 19. Bxb7 {[%clk 0:03:51.9]}
19... Qxb7 {[%clk 0:03:57.5]} 20. b4 {[%clk 0:03:41.4]} 20... Nd7 {[%clk
0:03:48.1]} 21. a3 {[%clk 0:03:39]} 21... Nf8 {[%clk 0:03:39.3]} 22. Ne4 {[%clk
0:03:34.4]} 22... Ng6 {[%clk 0:03:37.9]} 23. Nd6 {[%clk 0:03:23.9]} 23... Qb6
{[%clk 0:03:33.2]} 24. Qc2 {[%clk 0:03:03]} 24... Bxd6 {[%clk 0:03:28.7]} 25.
exd6 {[%clk 0:03:00.9]} 25... Rxd6 {[%clk 0:03:26.6]} 26. Rxd6 {[%clk
0:02:57.9]} 26... Qxd6 {[%clk 0:03:25.7]} 27. Rd1 {[%clk 0:02:53.6]} 27... Qf4
{[%clk 0:03:20.5]} 28. h3 {[%clk 0:02:45]} 28... Qf6 {[%clk 0:03:13.1]} 29. Qc6
{[%clk 0:02:39.3]} 29... Ra7 {[%clk 0:02:57.6]} 30. Qe8+ {[%clk 0:02:32.9]}
30... Kh7 {[%clk 0:02:56.4]} 31. Rd8 {[%clk 0:02:25.1]} 31... Nf4 {[%clk
0:02:54.3]} 32. Rd7 {[%clk 0:01:56.1]} 32... Rxd7 {[%clk 0:02:51.5]} 33. Qxd7
{[%clk 0:01:54.6]} 33... Nxh3+ {[%clk 0:02:51.2]} 34. gxh3 {[%clk 0:01:50.8]}
34... Qxf3 {[%clk 0:02:49.8]} 35. h4 {[%clk 0:01:37.9]} 35... Kg6 {[%clk
0:02:43.6]} 36. Qd6 {[%clk 0:01:33.2]} 36... Qxa3 {[%clk 0:02:38.4]} 37. Qc5
{[%clk 0:01:23.5]} 37... Qf3 {[%clk 0:02:30.3]} 38. Qc2+ {[%clk 0:01:20.9]}
38... Qf5 {[%clk 0:02:26.7]} 39. Qc6 {[%clk 0:01:15.6]} 39... Qg4+ {[%clk
0:02:23.1]} 40. Kf1 {[%clk 0:01:09]} 40... Qc4+ {[%clk 0:02:20.6]} 41. Qxc4
{[%clk 0:01:06.3]} 41... bxc4 {[%clk 0:02:20.5]} 42. Ke1 {[%clk 0:01:05.2]}
42... Kh5 {[%clk 0:02:19.8]} 43. Kd2 {[%clk 0:01:03.7]} 43... Kxh4 {[%clk
0:02:19.3]} 44. Kc3 {[%clk 0:01:03.1]} 44... Kg4 {[%clk 0:02:18.5]} 45. Kxc4
{[%clk 0:01:01.2]} 45... h5 {[%clk 0:02:18.1]} 46. Kc5 {[%clk 0:01:00.3]} 46...
h4 {[%clk 0:02:17.6]} 47. Kb6 {[%clk 0:00:59.7]} 47... h3 {[%clk 0:02:17.1]} 48.
Kxa6 {[%clk 0:00:59.2]} 48... h2 {[%clk 0:02:16.7]} 49. b5 {[%clk 0:00:58.7]}
49... h1=Q {[%clk 0:02:15.6]} 50. b6 {[%clk 0:00:57.7]} 50... Qa8+ {[%clk
0:02:14.4]} 51. Kb5 {[%clk 0:00:56.3]} 51... Qb7 {[%clk 0:02:14.1]} 0-1

[Event "Live Chess"]
[Site "Chess.com"]
[Date "2024.06.01"]
[Round "-"]
[White "Dhaydon19"]
[Black "rakibsachchu"]
[Result "1-0"]
[WhiteElo "2677"]
[BlackElo "1579"]
[TimeControl "300"]
[EndTime "11:12:22 PDT"]
[Termination "Dhaydon19 won on time"]

1. Nf3 {[%clk 0:04:58.4]} 1... Nf6 {[%clk 0:04:53.8]} 2. e3 {[%clk 0:04:57]}
2... g6 {[%clk 0:04:52.2]} 3. b3 {[%clk 0:04:51.7]} 3... Bg7 {[%clk 0:04:50.7]}
4. Bb2 {[%clk 0:04:51.4]} 4... O-O {[%clk 0:04:49.1]} 5. Be2 {[%clk 0:04:50.7]}
5... d6 {[%clk 0:04:41.9]} 6. c4 {[%clk 0:04:49.9]} 6... e5 {[%clk 0:04:40.4]}
7. O-O {[%clk 0:04:49.1]} 7... c6 {[%clk 0:04:38.2]} 8. Nc3 {[%clk 0:04:47.4]}
8... Nbd7 {[%clk 0:04:33.6]} 9. Qc2 {[%clk 0:04:44.5]} 9... Nc5 {[%clk 0:04:28]}
10. d3 {[%clk 0:04:42.9]} 10... a5 {[%clk 0:04:25.4]} 11. a3 {[%clk 0:04:40.9]}
11... Qe7 {[%clk 0:04:19.7]} 12. b4 {[%clk 0:04:38.5]} 12... Ne6 {[%clk
0:04:17.9]} 13. Na4 {[%clk 0:04:33.4]} 13... b5 {[%clk 0:04:04.5]} 14. Nb6
{[%clk 0:04:28.8]} 14... Rb8 {[%clk 0:04:01.3]} 15. bxa5 {[%clk 0:04:26.4]}
15... Nd7 {[%clk 0:03:47]} 16. Nxc8 {[%clk 0:04:16]} 16... Rfxc8 {[%clk
0:03:44.5]} 17. Rfc1 {[%clk 0:04:10.2]} 17... Ndc5 {[%clk 0:03:30.3]} 18. cxb5
{[%clk 0:03:58.3]} 18... cxb5 {[%clk 0:03:26.6]} 19. d4 {[%clk 0:03:43.7]} 19...
exd4 {[%clk 0:03:04.6]} 20. Nxd4 {[%clk 0:03:41]} 20... Na4 {[%clk 0:02:58.1]}
21. Qxc8+ {[%clk 0:03:37.2]} 21... Rxc8 {[%clk 0:02:51.1]} 22. Rxc8+ {[%clk
0:03:36.3]} 22... Bf8 {[%clk 0:02:47.4]} 23. Rb1 {[%clk 0:03:20.5]} 23... Qb7
{[%clk 0:02:19.3]} 24. Rcc1 {[%clk 0:03:17.2]} 24... Qa7 {[%clk 0:01:34.5]} 25.
Nxe6 {[%clk 0:03:11]} 25... fxe6 {[%clk 0:01:31]} 26. Bd4 {[%clk 0:03:10.6]}
26... Qxa5 {[%clk 0:01:28.4]} 27. Bxb5 {[%clk 0:03:09.1]} 27... Nc5 {[%clk
0:01:23.1]} 28. Bxc5 {[%clk 0:03:05.8]} 28... dxc5 {[%clk 0:01:20.8]} 29. a4
{[%clk 0:03:05.5]} 29... Kg7 {[%clk 0:01:15.7]} 30. Rd1 {[%clk 0:03:01.9]} 30...
Kf6 {[%clk 0:01:11.4]} 31. Rbc1 {[%clk 0:02:59.9]} 31... Ke5 {[%clk 0:00:58.5]}
32. g3 {[%clk 0:02:58.5]} 32... h5 {[%clk 0:00:45.4]} 33. Kg2 {[%clk 0:02:56.7]}
33... h4 {[%clk 0:00:43.5]} 34. f4+ {[%clk 0:02:50.8]} 34... Kf5 {[%clk
0:00:36.7]} 35. Rd7 {[%clk 0:02:35.4]} 35... Kf6 {[%clk 0:00:32]} 36. e4 {[%clk
0:02:31.9]} 36... e5 {[%clk 0:00:19]} 37. Rf1 {[%clk 0:02:21.3]} 37... exf4
{[%clk 0:00:05.1]} 38. Rxf4+ {[%clk 0:02:18.8]} 38... Ke5 {[%clk 0:00:03.7]} 39.
Rxf8 {[%clk 0:02:13.9]} 1-0

[Event "Live Chess"]
[Site "Chess.com"]
[Date "2024.06.01"]
[Round "-"]
[White "CarmelJane"]
[Black "SavagePawn7"]
[Result "1-0"]
[WhiteElo "2086"]
[BlackElo "684"]
[TimeControl "300"]
[EndTime "11:12:23 PDT"]
[Termination "CarmelJane won by resignation"]

1. e4 {[%clk 0:04:58.3]} 1... d5 {[%clk 0:04:55.5]} 2. exd5 {[%clk 0:04:55.9]}
2... Nf6 {[%clk 0:04:52.1]} 3. d4 {[%clk 0:04:52.2]} 3... Nxd5 {[%clk
0:04:50.1]} 4. Nf3 {[%clk 0:04:51.2]} 4... Nc6 {[%clk 0:04:48.3]} 5. h3 {[%clk
0:04:49.1]} 5... Bf5 {[%clk 0:04:38.9]} 6. a3 {[%clk 0:04:46.6]} 6... e6 {[%clk
0:04:32.4]} 7. c4 {[%clk 0:04:45.1]} 7... Nde7 {[%clk 0:04:27.6]} 8. Nc3 {[%clk
0:04:44]} 8... Ng6 {[%clk 0:04:17.1]} 9. Be2 {[%clk 0:04:37.9]} 9... a6 {[%clk
0:04:10.5]} 10. O-O {[%clk 0:04:34.6]} 10... b5 {[%clk 0:04:04.9]} 11. cxb5
{[%clk 0:04:31.5]} 11... axb5 {[%clk 0:04:03.3]} 12. Bxb5 {[%clk 0:04:31.1]}
12... Qd7 {[%clk 0:03:55.5]} 13. d5 {[%clk 0:04:28.1]} 13... exd5 {[%clk
0:03:53]} 14. Qxd5 {[%clk 0:04:27.4]} 14... Qxd5 {[%clk 0:03:46.2]} 15. Nxd5
{[%clk 0:04:27.3]} 15... Bd7 {[%clk 0:03:32.5]} 16. Nxc7+ {[%clk 0:04:24.2]}
16... Kd8 {[%clk 0:03:27.2]} 17. Nxa8 {[%clk 0:04:23.5]} 17... Bc5 {[%clk
0:03:16.7]} 18. Rd1 {[%clk 0:04:17]} 1-0